fUST/lending_fUST_20250722
["ID","MTS","AMOUNT","RATE_DAILY","PERIOD"]
[374013285,1753181442055,-511.16,0.00018775,2]
[374013286,1753181442068,-1698.54,0.00018775,2]
[374013287,1753181442080,-585.64,0.00018776,2]
[374013288,1753181442092,-743.76,0.00018776,2]
[374013289,1753181442103,-2113.34,0.00018776,2]
[374013290,1753181442116,-1006.03,0.00018776,2]
[374013291,1753181442128,-460.0,0.00018777,2]
[374013292,1753181442140,-684.09,0.00018778,2]
[374013293,1753181442152,-500.0,0.00018849,2]
[374013294,1753181442162,-221.23383675,0.00018849,3]
[374013295,1753181442177,-1312.26454849,0.000189,2]
[374013296,1753181442188,-260.0,0.00018928,2]
[374013297,1753181442200,-160.0,0.00018985,2]
[374013298,1753181442212,-214.6393183,0.00018985,2]
[374013299,1753181442224,-160.0,0.00018985,2]
[374013300,1753181442237,-160.0,0.00018985,2]
[374013301,1753181442249,-160.0,0.00018985,2]
[374013302,1753181442262,-215.80012421,0.00018985,2]
[374013303,1753181442274,-839.90542673,0.00018985,2]
[374013304,1753181442288,-476.60259688,0.00018985,2]
[374013305,1753181442300,-526.07605158,0.00018985,2]
[374013306,1753181442312,-160.0,0.00018985,2]
[374013307,1753181442323,-160.0,0.00018985,2]
[374013308,1753181442333,-160.0,0.00018985,2]
[374013309,1753181442344,-160.0,0.00018985,2]
[374013310,1753181442356,-231.06963584,0.00018985,2]
[374013311,1753181442369,-12619.94447631,0.00018985,2]
[374013312,1753181442383,-160.0,0.00018986,2]
[374013313,1753181442393,-4372.02875841,0.00019003,2]
[374013314,1753181442405,-460.0,0.00019047,2]
[374013315,1753181442416,-460.0,0.00019047,2]
[374013316,1753181442427,-460.0,0.00019047,2]
[374013317,1753181442440,-460.0,0.00019047,2]
[374013318,1753181442452,-1625.59,0.00019047,2]
[374013319,1753181442462,-425.95,0.00019047,2]
[374013320,1753181442473,-460.0,0.00019047,2]
[374013321,1753181442485,-2498.66,0.00019047,2]
[374013322,1753181442497,-460.0,0.00019047,2]
[374013323,1753181442508,-1410.27,0.00019047,2]
[374013324,1753181442521,-930.79,0.00019047,2]
[374013325,1753181442532,-460.0,0.00019047,2]
[374013326,1753181442543,-460.0,0.00019047,2]
[374013327,1753181442555,-460.0,0.00019047,2]
[374013328,1753181442566,-460.0,0.00019047,2]
[374013329,1753181442578,-1069.15,0.00019047,2]
[374013330,1753181442589,-460.0,0.00019047,2]
[374013331,1753181442600,-460.0,0.00019048,2]
[374013332,1753181442611,-500.97,0.00019048,2]
[374013333,1753181442622,-479.89,0.00019048,2]
[374013334,1753181442633,-460.0,0.00019048,2]
[374013335,1753181442644,-460.0,0.00019048,2]
[374013336,1753181442655,-460.0,0.00019048,2]
[374013337,1753181442668,-460.0,0.00019048,2]
[374013338,1753181442679,-3622.45,0.00019048,2]
[374013339,1753181442690,-460.0,0.00019048,2]
[374013340,1753181442701,-819.49,0.00019048,2]
[374013341,1753181442712,-460.0,0.00019048,2]
[374013342,1753181442722,-460.0,0.00019049,2]
[374013343,1753181442733,-511.16,0.00019049,2]
[374013344,1753181442744,-1698.54,0.00019049,2]
[374013345,1753181442755,-585.64,0.0001905,2]
[374013346,1753181442767,-743.76,0.0001905,2]
[374013347,1753181442778,-2113.34,0.0001905,2]
[374013348,1753181442789,-1006.03,0.0001905,2]
[374013349,1753181442800,-460.0,0.00019051,2]
[374013350,1753181442811,-684.09,0.00019052,2]
[374013351,1753181442822,-5000.0,0.00019178,2]
[374013352,1753181442833,-1271.84472331,0.00019178,2]
[374013353,1753181442843,-666.0,0.00019178,2]
[374013354,1753181442855,-243.174853,0.00019178,2]
[374013355,1753181442866,-4372.02875841,0.00019279,2]
[374013356,1753181442877,-364.81426479,0.00019321,2]
[374013357,1753181442887,-460.0,0.00019321,2]
[374013358,1753181442898,-460.0,0.00019321,2]
[374013359,1753181442909,-460.0,0.00019321,2]
[374013360,1753181442921,-1625.59,0.00019321,2]
[374013361,1753181442932,-460.0,0.00019321,2]
[374013362,1753181442944,-2498.66,0.00019321,2]
[374013363,1753181442955,-460.0,0.00019321,2]
[374013364,1753181442967,-1410.27,0.00019321,2]
[374013365,1753181442978,-930.79,0.00019321,2]
[374013366,1753181442989,-460.0,0.00019321,2]
[374013367,1753181443000,-460.0,0.00019321,2]
[374013368,1753181443011,-460.0,0.00019321,2]
[374013369,1753181443023,-460.0,0.00019321,2]
[374013370,1753181443035,-1069.15,0.00019321,2]
[374013371,1753181443047,-460.0,0.00019321,2]
[374013372,1753181443060,-238.69,0.00019322,2]
[374013373,1753181443071,-500.97,0.00019322,2]
[374013374,1753181443081,-479.89,0.00019322,2]
[374013377,1753181443093,-460.0,0.00019322,2]
[374013378,1753181443102,-460.0,0.00019322,2]
[374013379,1753181443112,-157.01,0.00019322,2]
[374013380,1753181443121,-460.0,0.00019322,2]
[374013381,1753181443131,-3622.45,0.00019322,2]
[374013382,1753181443140,-460.0,0.00019322,2]
[374013383,1753181443150,-819.49,0.00019322,2]
[374013384,1753181443159,-460.0,0.00019322,2]
[374013386,1753181443172,-460.0,0.00019323,2]
[374013390,1753181443322,-511.16,0.00019323,2]
[374013391,1753181443339,-1698.54,0.00019323,2]
[374013393,1753181443350,-585.64,0.00019324,2]
[374013395,1753181443359,-743.76,0.00019324,2]
[374013397,1753181443369,-2113.34,0.00019324,2]
[374013399,1753181443378,-1006.03,0.00019324,2]
[374013401,1753181443387,-460.0,0.00019325,2]
[374013403,1753181443397,-684.09,0.00019326,2]
[374013405,1753181443406,-151.0,0.00019329,2]
[374013407,1753181443415,-153.095795,0.00019329,2]
[374013409,1753181443424,-151.0,0.00019329,2]
[374013411,1753181443434,-151.0,0.00019329,2]
[374013414,1753181443444,-100000.0,0.00019329,2]
[374013416,1753181443454,-500.0,0.00019373,2]
[374013417,1753181443463,-500.0,0.00019373,2]
[374013419,1753181443473,-500.0,0.00019373,2]
[374013421,1753181443482,-500.0,0.00019373,2]
[374013423,1753181443491,-500.0,0.00019373,2]
[374013425,1753181443501,-500.0,0.00019373,2]
[374013427,1753181443509,-360.0,0.00019476,2]
[374013429,1753181443519,-4372.02875841,0.00019555,2]
[374013431,1753181443529,-460.0,0.00019595,2]
[374013433,1753181443538,-512.73249376,0.00019595,2]
[374013435,1753181443547,-1625.59,0.00019595,2]
[374013437,1753181443557,-460.0,0.00019595,2]
[374013440,1753181443566,-460.0,0.00019595,2]
[374013441,1753181443576,-2498.66,0.00019595,2]
[374013443,1753181443585,-1410.27,0.00019595,2]
[374013445,1753181443594,-930.79,0.00019595,2]
[374013447,1753181443604,-460.0,0.00019595,2]
[374013449,1753181443613,-460.0,0.00019595,2]
[374013451,1753181443622,-460.0,0.00019595,2]
[374013453,1753181443631,-460.0,0.00019595,2]
[374013455,1753181443640,-1069.15,0.00019595,2]
[374013457,1753181443649,-460.0,0.00019595,2]
[374013459,1753181443659,-500.97,0.00019596,2]
[374013461,1753181443668,-479.89,0.00019596,2]
[374013464,1753181443678,-460.0,0.00019596,2]
[374013466,1753181443687,-460.0,0.00019596,2]
[374013468,1753181443696,-460.0,0.00019596,2]
[374013470,1753181443705,-3622.45,0.00019596,2]
[374013472,1753181443714,-460.0,0.00019596,2]
[374013474,1753181443724,-819.49,0.00019596,2]
[374013476,1753181443733,-460.0,0.00019596,2]
[374013477,1753181443743,-460.0,0.00019597,2]
[374013479,1753181443752,-511.16,0.00019597,2]
[374013481,1753181443761,-1698.54,0.00019597,2]
[374013482,1753181443771,-585.64,0.00019598,2]
[374013483,1753181443780,-743.76,0.00019598,2]
[374013484,1753181443789,-2113.34,0.00019598,2]
[374013485,1753181443799,-1006.03,0.00019598,2]
[374013486,1753181443808,-460.0,0.00019599,2]
[374013487,1753181443817,-684.09,0.000196,2]
[374013488,1753181443826,-686.23925577,0.00019602,2]
[374013489,1753181443835,-4372.02875841,0.00019831,2]
[374013490,1753181443845,-460.0,0.00019869,2]
[374013491,1753181443854,-1625.59,0.00019869,2]
[374013492,1753181443864,-154.65473086,0.00019869,2]
[374013493,1753181443874,-460.0,0.00019869,2]
[374013494,1753181443883,-2498.66,0.00019869,2]
[374013495,1753181443893,-1410.27,0.00019869,2]
[374013496,1753181443902,-930.79,0.00019869,2]
[374013497,1753181443912,-460.0,0.00019869,2]
[374013498,1753181443921,-460.0,0.00019869,2]
[374013499,1753181443934,-460.0,0.00019869,2]
[374013500,1753181443944,-460.0,0.00019869,2]
[374013501,1753181443955,-1069.15,0.00019869,2]
[374013502,1753181443964,-460.0,0.00019869,2]
[374013503,1753181443974,-500.97,0.0001987,2]
[374013504,1753181443983,-479.89,0.0001987,2]
[374013505,1753181443992,-460.0,0.0001987,2]
[374013506,1753181444002,-460.0,0.0001987,2]
[374013507,1753181444011,-460.0,0.0001987,2]
[374013508,1753181444021,-3622.45,0.0001987,2]
[374013509,1753181444031,-460.0,0.0001987,2]
[374013510,1753181444040,-819.49,0.0001987,2]
[374013511,1753181444051,-460.0,0.0001987,2]
[374013512,1753181444060,-500.0,0.0001987,2]
[374013513,1753181444069,-460.0,0.00019871,2]
[374013515,1753181444079,-511.16,0.00019871,2]
[374013517,1753181444088,-1698.54,0.00019871,2]
[374013519,1753181444097,-585.64,0.00019872,2]
[374013521,1753181444107,-743.76,0.00019872,2]
[374013522,1753181444117,-2113.34,0.00019872,2]
[374013524,1753181444127,-531.24,0.00019873,2]
[374013526,1753181444137,-684.09,0.00019874,2]
[374013528,1753181444146,-1000.0,0.00019921,2]
[374013530,1753181444156,-1000.0,0.00019921,2]
[374013532,1753181444167,-500.0,0.00019921,2]
[374013534,1753181444177,-460.0,0.00020024,2]
[374013536,1753181444186,-4372.02875841,0.00020107,2]
[374013538,1753181444195,-460.0,0.00020143,2]
[374013539,1753181444206,-1625.59,0.00020143,2]
[374013540,1753181444216,-487.4,0.00020143,2]
[374013541,1753181444225,-2498.66,0.00020143,2]
[374013542,1753181444234,-1410.27,0.00020143,2]
[374013543,1753181444243,-930.79,0.00020143,2]
[374013544,1753181444252,-460.0,0.00020143,2]
[374013546,1753181444261,-460.0,0.00020143,2]
[374013547,1753181444271,-460.0,0.00020143,2]
[374013548,1753181444281,-452.04904119,0.00020143,2]
[374013549,1753181444291,-1069.15,0.00020143,2]
[374013550,1753181444301,-460.0,0.00020143,2]
[374013551,1753181444311,-500.97,0.00020144,2]
[374013552,1753181444320,-479.89,0.00020144,2]
[374013553,1753181444330,-460.0,0.00020144,2]
[374013554,1753181444339,-460.0,0.00020144,2]
[374013555,1753181444349,-460.0,0.00020144,2]
[374013556,1753181444360,-3622.45,0.00020144,2]
[374013558,1753181444370,-460.0,0.00020144,2]
[374013560,1753181444379,-819.49,0.00020144,2]
[374013562,1753181444388,-460.0,0.00020144,2]
[374013564,1753181444397,-460.0,0.00020145,2]
[374013566,1753181444407,-511.16,0.00020145,2]
[374013568,1753181444416,-1698.54,0.00020145,2]
[374013570,1753181444426,-585.64,0.00020146,2]
[374013572,1753181444435,-743.76,0.00020146,2]
[374013574,1753181444445,-2113.34,0.00020146,2]
[374013576,1753181444455,-684.09,0.00020148,2]
[374013578,1753181444465,-4372.02875841,0.00020383,3]
[374013580,1753181444475,-214.6393183,0.0002039,3]
[374013582,1753181444484,-476.60259688,0.0002039,3]
[374013584,1753181444494,-12619.94447631,0.0002039,3]
[374013586,1753181444503,-411.67378705,0.00020417,2]
[374013588,1753181444513,-1625.59,0.00020417,2]
[374013590,1753181444522,-2498.66,0.00020417,2]
[374013592,1753181444532,-1410.27,0.00020417,2]
[374013594,1753181444541,-930.79,0.00020417,2]
[374013596,1753181444551,-460.0,0.00020417,2]
[374013598,1753181444560,-460.0,0.00020417,2]
[374013600,1753181444570,-460.0,0.00020417,2]
[374013602,1753181444579,-1069.15,0.00020417,2]
[374013604,1753181444589,-460.0,0.00020417,2]
[374013606,1753181444598,-500.97,0.00020418,2]
[374013608,1753181444608,-479.89,0.00020418,2]
[374013610,1753181444618,-460.0,0.00020418,2]
[374013612,1753181444627,-460.0,0.00020418,2]
[374013615,1753181444637,-460.0,0.00020418,2]
[374013617,1753181444647,-3622.45,0.00020418,2]
[374013619,1753181444656,-460.0,0.00020418,2]
[374013621,1753181444665,-819.49,0.00020418,2]
[374013623,1753181444674,-460.0,0.00020418,2]
[374013625,1753181444683,-460.0,0.00020419,2]
[374013627,1753181444693,-511.16,0.00020419,2]
[374013629,1753181444703,-1698.54,0.00020419,2]
[374013631,1753181444712,-585.64,0.0002042,2]
[374013633,1753181444722,-743.76,0.0002042,2]
[374013635,1753181444731,-2113.34,0.0002042,2]
[374013637,1753181444741,-684.09,0.00020422,2]
[374013639,1753181444751,-1500.0,0.00020468,2]
[374013640,1753181444761,-560.0,0.00020572,2]
[374013641,1753181444770,-4372.02875841,0.00020659,3]
[374013642,1753181444781,-160.0,0.0002066,3]
[374013643,1753181444790,-1625.59,0.00020691,2]
[374013644,1753181444799,-2498.66,0.00020691,2]
[374013645,1753181444809,-1410.27,0.00020691,2]
[374013646,1753181444819,-930.79,0.00020691,2]
[374013647,1753181444828,-460.0,0.00020691,2]
[374013648,1753181444838,-527.42,0.00020691,2]
[374013649,1753181444847,-460.0,0.00020691,2]
[374013650,1753181444857,-1069.15,0.00020691,2]
[374013651,1753181444870,-460.0,0.00020691,2]
[374013652,1753181444879,-500.97,0.00020692,2]
[374013653,1753181444889,-479.89,0.00020692,2]
[374013654,1753181444898,-460.0,0.00020692,2]
[374013655,1753181444907,-460.0,0.00020692,2]
[374013656,1753181444916,-460.0,0.00020692,2]
[374013657,1753181444926,-3622.45,0.00020692,2]
[374013658,1753181444935,-460.0,0.00020692,2]
[374013659,1753181444945,-819.49,0.00020692,2]
[374013660,1753181444955,-460.0,0.00020692,2]
[374013661,1753181444964,-460.0,0.00020693,2]
[374013662,1753181444974,-511.16,0.00020693,2]
[374013663,1753181444984,-1698.54,0.00020693,2]
[374013664,1753181444993,-585.64,0.00020694,2]
[374013665,1753181445002,-743.76,0.00020694,2]
[374013666,1753181445012,-2113.34,0.00020694,2]
[374013667,1753181445022,-684.09,0.00020696,2]
[374013668,1753181445033,-178.80003706,0.00020735,2]
[374013669,1753181445042,-837.473,0.00020735,2]
[374013670,1753181445051,-686.23925577,0.00020751,2]
[374013671,1753181445060,-4372.02875841,0.00020934,4]
[374013672,1753181445070,-151.0,0.00020935,2]
[374013673,1753181445080,-151.0,0.00020935,2]
[374013674,1753181445089,-151.0,0.00020935,7]
[374013675,1753181445099,-151.0,0.00020935,7]
[374013676,1753181445109,-151.0,0.00020935,7]
[374013677,1753181445117,-151.0,0.00020935,7]
[374013678,1753181445127,-151.0,0.00020935,7]
[374013679,1753181445136,-151.0,0.00020935,7]
[374013680,1753181445145,-151.0,0.00020935,7]
[374013681,1753181445154,-151.0,0.00020935,7]
[374013682,1753181445163,-151.0,0.00020935,7]
[374013683,1753181445175,-151.0,0.00020935,7]
[374013684,1753181445185,-151.0,0.00020935,7]
[374013685,1753181445194,-151.0,0.00020935,7]
[374013686,1753181445203,-151.0,0.00020935,7]
[374013687,1753181445213,-151.0,0.00020935,7]
[374013688,1753181445223,-151.0,0.00020935,7]
[374013689,1753181445232,-151.0,0.00020935,7]
[374013690,1753181445242,-151.0,0.00020935,7]
[374013691,1753181445252,-151.0,0.00020935,7]
[374013692,1753181445261,-237.757173,0.00020935,7]
[374013693,1753181445271,-1625.59,0.00020965,2]
[374013694,1753181445280,-2498.66,0.00020965,2]
[374013695,1753181445289,-1410.27,0.00020965,2]
[374013696,1753181445298,-930.79,0.00020965,2]
[374013697,1753181445307,-460.0,0.00020965,2]
[374013698,1753181445317,-460.0,0.00020965,2]
[374013699,1753181445326,-1069.15,0.00020965,2]
[374013700,1753181445335,-460.0,0.00020965,2]
[374013701,1753181445345,-500.97,0.00020966,2]
[374013702,1753181445355,-479.89,0.00020966,2]
[374013703,1753181445364,-460.0,0.00020966,2]
[374013704,1753181445373,-460.0,0.00020966,2]
[374013705,1753181445383,-460.0,0.00020966,2]
[374013706,1753181445392,-3622.45,0.00020966,2]
[374013707,1753181445402,-460.0,0.00020966,2]
[374013708,1753181445412,-819.49,0.00020966,2]
[374013709,1753181445422,-460.0,0.00020966,2]
[374013710,1753181445431,-460.0,0.00020967,2]
[374013711,1753181445440,-511.16,0.00020967,2]
[374013712,1753181445450,-1698.54,0.00020967,2]
[374013713,1753181445459,-151.0,0.00020968,2]
[374013714,1753181445468,-585.64,0.00020968,2]
[374013715,1753181445478,-743.76,0.00020968,2]
[374013716,1753181445487,-2113.34,0.00020968,2]
[374013717,1753181445496,-684.09,0.0002097,2]
[374013718,1753181445506,-260.0,0.0002112,2]
[374013719,1753181445514,-151.0,0.00021188,2]
[374013720,1753181445526,-151.0,0.00021188,2]
[374013721,1753181445535,-215.0738,0.00021188,2]
[374013722,1753181445545,-151.0,0.00021188,2]
[374013723,1753181445554,-151.0,0.00021188,2]
[374013724,1753181445564,-151.0,0.00021188,2]
[374013725,1753181445574,-151.0,0.00021188,2]
[374013726,1753181445584,-151.0,0.00021188,2]
[374013727,1753181445593,-151.0,0.00021188,2]
[374013728,1753181445603,-151.0,0.00021188,2]
[374013729,1753181445613,-151.0,0.00021188,2]
[374013730,1753181445622,-151.0,0.00021188,2]
[374013731,1753181445632,-151.0,0.00021188,2]
[374013732,1753181445641,-151.0,0.00021188,2]
[374013733,1753181445650,-151.0,0.00021188,2]
[374013734,1753181445660,-151.0,0.00021188,2]
[374013735,1753181445669,-151.0,0.00021188,2]
[374013736,1753181445678,-151.0,0.00021188,2]
[374013737,1753181445688,-182.00579184,0.00021188,2]
[374013738,1753181445699,-25000.0,0.00021188,2]
[374013739,1753181445708,-4372.02875841,0.0002121,4]
[374013740,1753181445718,-1625.59,0.00021239,2]
[374013741,1753181445727,-2498.66,0.00021239,2]
[374013742,1753181445736,-1410.27,0.00021239,2]
[374013743,1753181445750,-930.79,0.00021239,2]
[374013744,1753181445759,-303.66,0.00021239,2]
[374013745,1753181445775,-460.0,0.00021239,2]
[374013746,1753181445784,-1069.15,0.00021239,2]
[374013747,1753181445794,-460.0,0.00021239,2]
[374013748,1753181445803,-500.97,0.0002124,2]
[374013749,1753181445812,-479.89,0.0002124,2]
[374013750,1753181445822,-460.0,0.0002124,2]
[374013751,1753181445831,-460.0,0.0002124,2]
[374013752,1753181445841,-460.0,0.0002124,2]
[374013753,1753181445850,-3622.45,0.0002124,2]
[374013754,1753181445860,-460.0,0.0002124,2]
[374013755,1753181445870,-819.49,0.0002124,2]
[374013756,1753181445880,-460.0,0.0002124,2]
[374013757,1753181445889,-460.0,0.00021241,2]
[374013758,1753181445899,-511.16,0.00021241,2]
[374013759,1753181445907,-1698.54,0.00021241,2]
[374013760,1753181445917,-585.64,0.00021242,2]
[374013761,1753181445926,-743.76,0.00021242,2]
[374013762,1753181445936,-2113.34,0.00021242,2]
[374013764,1753181445945,-684.09,0.00021244,2]
[374013766,1753181445955,-4372.02875841,0.00021486,5]
[374013768,1753181445964,-2845.39533252,0.00021513,2]
[374013770,1753181445975,-1625.59,0.00021513,2]
[374013772,1753181445986,-2498.66,0.00021513,2]
[374013773,1753181445996,-1410.27,0.00021513,2]
[374013774,1753181446005,-930.79,0.00021513,2]
[374013775,1753181446015,-460.0,0.00021513,2]
[374013776,1753181446024,-1069.15,0.00021513,2]
[374013777,1753181446033,-500.0,0.00021513,2]
[374013778,1753181446043,-460.0,0.00021513,2]
[374013779,1753181446051,-500.97,0.00021514,2]
[374013780,1753181446061,-479.89,0.00021514,2]
[374013781,1753181446070,-460.0,0.00021514,2]
[374013782,1753181446080,-460.0,0.00021514,2]
[374013783,1753181446090,-3622.45,0.00021514,2]
[374013784,1753181446099,-324.16,0.00021514,2]
[374013785,1753181446108,-819.49,0.00021514,2]
[374013786,1753181446118,-460.0,0.00021514,2]
[374013787,1753181446127,-573.76,0.00021515,2]
[374013788,1753181446137,-511.16,0.00021515,2]
[374013789,1753181446146,-1698.54,0.00021515,2]
[374013791,1753181446155,-585.64,0.00021516,2]
[374013793,1753181446165,-743.76,0.00021516,2]
[374013795,1753181446178,-2113.34,0.00021516,2]
[374013797,1753181446187,-684.09,0.00021518,2]
[374013799,1753181446196,-500.4670742,0.00021523,2]
[374013801,1753181446206,-500.40940972,0.00021523,2]
[374013803,1753181446215,-500.17276481,0.00021659,2]
[374013805,1753181446224,-500.0,0.00021688,2]
[374013807,1753181446233,-500.0,0.00021688,2]
[374013809,1753181446242,-500.0,0.00021688,2]
[374013811,1753181446251,-500.0,0.00021688,2]
[374013813,1753181446261,-347.83318823,0.00021688,2]
[374013815,1753181446270,-500.0,0.00021688,2]
[374013817,1753181446280,-500.59816244,0.00021688,2]
[374013819,1753181446289,-152.23381412,0.00021728,2]
[374013821,1753181446299,-500.0,0.00021728,2]
[374013823,1753181446309,-500.0,0.00021728,2]
[374013825,1753181446318,-4372.02875841,0.00021762,5]
[374013827,1753181446328,-1625.59,0.00021787,2]
[374013841,1753181446448,-2498.66,0.00021787,2]
[374013843,1753181446457,-1410.27,0.00021787,2]
[374013845,1753181446467,-930.79,0.00021787,2]
[374013847,1753181446477,-460.0,0.00021787,2]
[374013849,1753181446490,-1069.15,0.00021787,2]
[374013851,1753181446500,-460.0,0.00021787,2]
[374013853,1753181446509,-500.97,0.00021788,2]
[374013855,1753181446519,-479.89,0.00021788,2]
[374013857,1753181446529,-460.0,0.00021788,2]
[374013859,1753181446540,-460.0,0.00021788,2]
[374013861,1753181446549,-3622.45,0.00021788,2]
[374013863,1753181446559,-479.31,0.00021788,2]
[374013865,1753181446569,-819.49,0.00021788,2]
[374013867,1753181446578,-511.16,0.00021789,2]
[374013869,1753181446588,-1698.54,0.00021789,2]
[374013871,1753181446597,-585.64,0.0002179,2]
[374013873,1753181446607,-743.76,0.0002179,2]
[374013875,1753181446617,-2113.34,0.0002179,2]
[374013877,1753181446626,-684.09,0.00021792,2]
[374013879,1753181446637,-686.23925577,0.000219,2]
[374013881,1753181446646,-151.0,0.00021918,2]
[374013883,1753181446656,-151.0,0.00021918,2]
[374013885,1753181446665,-500.0,0.00021999,2]
[374013887,1753181446674,-500.0,0.00021999,2]
[374013889,1753181446684,-500.0,0.00021999,2]
[374013891,1753181446693,-308.82850684,0.00021999,2]
[374013893,1753181446703,-898.02,0.00022,7]
[374013895,1753181446712,-151.0,0.00022,7]
[374013897,1753181446721,-2660.2,0.00022,7]
[374013899,1753181446730,-7873.24,0.00022,7]
[374013901,1753181446739,-31711.96,0.00022,2]
[374013902,1753181446748,-160.0,0.00022,7]
[374013904,1753181446758,-214.6393183,0.00022,7]
[374013906,1753181446767,-476.60259688,0.00022,7]
[374013908,1753181446806,-12619.94447631,0.00022,7]
[374013910,1753181446816,-4372.02875841,0.00022038,6]
[374013912,1753181446826,-1625.59,0.00022061,2]
[374013914,1753181446837,-2498.66,0.00022061,2]
[374013917,1753181446846,-1410.27,0.00022061,2]
[374013919,1753181446855,-930.79,0.00022061,2]
[374013921,1753181446865,-460.0,0.00022061,2]
[374013923,1753181446874,-1069.15,0.00022061,2]
[374013925,1753181446883,-460.0,0.00022061,2]
[374013927,1753181446892,-500.97,0.00022062,2]
[374013929,1753181446902,-479.89,0.00022062,2]
[374013931,1753181446911,-460.0,0.00022062,2]
[374013933,1753181446920,-460.0,0.00022062,2]
[374013935,1753181446930,-3622.45,0.00022062,2]
[374013937,1753181446939,-819.49,0.00022062,2]
[374013939,1753181446949,-511.16,0.00022063,2]
[374013941,1753181446959,-1698.54,0.00022063,2]
[374013942,1753181446969,-585.64,0.00022064,2]
[374013945,1753181446978,-743.76,0.00022064,2]
[374013947,1753181446988,-2113.34,0.00022064,2]
[374013948,1753181446998,-151.0,0.00022066,7]
[374013949,1753181447007,-151.0,0.00022066,7]
[374013951,1753181447016,-684.09,0.00022066,2]
[374013953,1753181447027,-151.0,0.00022068,7]
[374013955,1753181447037,-374.63540786,0.00022094,2]
[374013957,1753181447046,-500.0,0.00022094,2]
[374013959,1753181447056,-160.06534133,0.00022094,2]
[374013961,1753181447066,-500.69980759,0.00022094,2]
[374013963,1753181447075,-500.0,0.00022094,2]
[374013965,1753181447084,-158.2507302,0.00022094,2]
[374013967,1753181447093,-158.25297307,0.00022094,2]
[374013969,1753181447103,-500.0,0.00022094,2]
[374013971,1753181447113,-261.38951761,0.00022094,2]
[374013973,1753181447122,-500.0,0.000221,2]
[374013975,1753181447132,-500.0,0.000221,2]
[374013977,1753181447141,-500.0,0.000221,2]
[374013979,1753181447158,-500.0,0.000221,2]
[374013981,1753181447169,-500.0,0.000221,2]
[374013983,1753181447180,-500.3480752,0.000221,2]
[374013985,1753181447189,-158.2508833,0.000221,2]
[374013987,1753181447199,-500.0,0.000221,2]
[374013989,1753181447211,-500.0,0.000221,2]
[374013991,1753181447220,-548.34048182,0.000221,2]
[374013993,1753181447230,-500.0,0.000221,2]
[374013995,1753181447241,-500.0,0.000221,2]
[374013997,1753181447251,-500.0,0.000221,2]
[374013999,1753181447260,-500.0,0.000221,2]
[374014001,1753181447270,-500.0,0.000221,2]
[374014002,1753181447279,-500.0,0.000221,2]
[374014004,1753181447289,-500.0,0.000221,2]
[374014006,1753181447299,-500.38964033,0.000221,2]
[374014007,1753181447308,-500.8524135,0.000221,2]
[374014008,1753181447317,-292.58580708,0.00022236,2]